bitfinex-derivatives/quotes_ETHF0:USTF0_20260223
["timestamp","ask_amount","ask_price","bid_price","bid_amount"]
[1771817822538,0.71213936,1859.5,1858.2,1.76915]
[1771817822738,0.71213936,1859.4,1858.2,1.76915]
[1771817823043,2.692,1859.4,1858.2,8.39042]
[1771817823240,0.00420839,1859.6,1858.2,13.99031822]
[1771817823543,0.71236388,1859.5,1858.3,5.92190425]
[1771817823742,0.71233187,1859.4,1858.2,1.76915]
[1771817823944,2.692,1859.4,1858.2,1.76915]
[1771817824144,0.00420839,1859.6,1858.2,1.76915]
[1771817824338,2.692,1859.4,1858.2,1.76915]
[1771817824738,0.00420839,1859.6,1858.2,1.76915]
[1771817824941,2.692,1859.4,1858.2,1.76915]
[1771817825340,2.692,1859.3,1858.2,5.72995824]
[1771817825540,0.00420839,1859.6,1858.2,12.35123824]
[1771817825745,0.71270749,1859.5,1858.4,0.26912]
[1771817826045,2.692,1859.4,1858.4,0.26912]
[1771817826244,0.00420839,1859.6,1858.4,0.26912]
[1771817826439,2.692,1859.4,1858.4,0.26912]
[1771817826639,0.00420839,1859.6,1858.4,0.26912]
[1771817826839,2.692,1859.4,1858.4,0.26912]
[1771817827545,2.692,1859.3,1858.4,0.26912]
[1771817827745,0.00420839,1859.6,1858.4,0.26912]
[1771817828043,2.692,1859.4,1858.4,0.26912]
[1771817828239,3.96501663,1859.6,1858.4,0.26912]
[1771817828441,2.692,1859.3,1858.4,0.26912]
[1771817828744,3.96080824,1859.4,1858.4,0.27912]
[1771817828943,2.692,1859.1,1858.4,0.27912]
[1771817829143,3.96080824,1859.4,1858.4,0.27912]
[1771817829541,2.692,1859.0,1858.4,0.27912]
[1771817829741,3.96080824,1859.4,1858.4,0.27912]
[1771817829940,2.692,1859.1,1858.4,0.27912]
[1771817830346,3.96080824,1859.4,1858.4,0.27912]
[1771817830546,2.692,1859.1,1858.4,0.27912]
[1771817831143,2.692,1858.9,1858.4,0.27912]
[1771817831448,2.692,1859.0,1858.4,0.27912]
[1771817831646,3.96080824,1859.4,1858.4,0.27912]
[1771817831942,0.00420839,1859.6,1858.8,0.26906]
[1771817832147,2.692,1859.5,1858.8,0.26906]
[1771817832344,0.00420839,1859.6,1858.8,0.26906]
[1771817832548,2.692,1859.5,1858.8,0.26906]
[1771817832843,0.00420839,1859.6,1858.8,0.26906]
[1771817833047,2.69620839,1859.6,1858.8,0.26906]
[1771817834845,2.692,1859.5,1858.8,0.26906]
[1771817836143,2.692,1859.4,1858.8,0.26906]
[1771817836348,0.00420839,1859.6,1858.8,0.26906]
[1771817836849,0.00420839,1859.6,1858.4,0.01]
[1771817836850,2.692,1859.3,1858.4,0.01]
[1771817837046,0.00420839,1859.6,1858.5,0.26911]
[1771817837247,2.692,1859.5,1858.5,6.45587974]
[1771817837446,0.00420839,1859.6,1858.5,6.45587974]
[1771817837646,2.692,1859.4,1858.5,6.45587974]
[1771817838250,2.692,1859.3,1858.5,6.45587974]
[1771817838450,0.00420839,1859.6,1858.5,6.45587974]
[1771817838645,2.692,1859.3,1858.5,6.45587974]
[1771817839151,0.00420839,1859.6,1858.5,6.45587974]
[1771817839544,0.00420839,1859.6,1858.5,0.26911]
[1771817839750,2.692,1859.2,1858.5,0.26911]
[1771817840252,2.692,1859.0,1858.5,0.26911]
[1771817840453,0.00420839,1859.6,1858.6,5.91839475]
[1771817840751,1.72493035,1859.3,1858.5,0.26911]
[1771817841142,0.00420839,1859.6,1858.5,0.26911]
[1771817841853,1.72493035,1859.3,1858.6,0.73934087]
[1771817842350,0.00420839,1859.6,1858.8,0.73934087]
[1771817846450,0.00420839,1859.6,1858.4,0.74922824]
[1771817850160,0.71201361,1859.5,1858.4,0.74331072]
[1771817850356,0.71201361,1859.4,1858.4,0.01]
[1771817850655,0.71172743,1859.3,1858.4,0.01]
[1771817850856,0.26897,1859.5,1858.4,0.01]
[1771817851058,0.71172472,1859.4,1858.4,0.01]
[1771817851248,0.71172472,1859.3,1858.4,0.01]
[1771817851449,0.26897,1859.5,1858.4,0.01]
[1771817851657,0.71165113,1859.4,1858.4,0.01]
[1771817851857,0.71165113,1859.3,1858.4,0.01]
[1771817852156,0.26897,1859.5,1858.4,0.01]
[1771817852352,0.71165078,1859.4,1858.4,0.74204739]
[1771817852555,0.00420839,1859.6,1858.4,0.74204739]
[1771817852757,0.71172015,1859.5,1858.4,0.74204739]
[1771817852954,0.71172015,1859.4,1858.4,0.74204739]
[1771817853155,0.00420839,1859.6,1858.4,0.74204739]
[1771817853354,0.71173319,1859.5,1858.4,0.74204739]
[1771817853555,0.71173319,1859.4,1858.4,0.74204739]
[1771817853755,0.00420839,1859.6,1858.4,0.74204739]
[1771817853956,0.71158839,1859.5,1858.4,0.74204739]
[1771817854155,0.00420839,1859.6,1858.4,0.74204739]
[1771817854457,0.71161794,1859.5,1858.4,0.74204739]
[1771817854662,0.00420839,1859.6,1858.4,0.74204739]
[1771817854860,0.71157747,1859.5,1858.4,0.74204739]
[1771817855160,0.00420839,1859.6,1858.6,0.73019296]
[1771817856162,0.00420839,1859.6,1858.8,0.73498017]
[1771817878980,0.00420839,1859.6,1859.0,0.74203253]
[1771817884384,0.00420839,1859.6,1859.0,0.75203253]
[1771817886982,0.26882,1860.5,1859.0,0.75203253]
[1771817887182,0.71359711,1860.4,1859.0,0.75203253]
[1771817887388,0.71359711,1860.3,1859.0,0.75203253]
[1771817887590,0.26882,1860.5,1859.0,0.75203253]
[1771817887789,0.71344685,1860.4,1859.0,0.75203253]
[1771817888090,8.63267938,1860.3,1859.0,0.75203253]
[1771817888390,0.71344685,1860.2,1859.0,0.75203253]
[1771817888590,0.71344685,1860.1,1859.0,0.75203253]
[1771817888805,0.00425802,1860.4,1859.0,0.75203253]
[1771817889085,0.71325918,1860.3,1859.0,0.75203253]
[1771817889290,0.71325918,1860.2,1859.0,0.75203253]
[1771817889588,0.71325918,1860.1,1859.0,0.75203253]
[1771817889787,0.00425802,1860.4,1859.0,0.75203253]
[1771817890090,0.71330787,1860.3,1859.0,0.75203253]
[1771817890294,0.00425802,1860.4,1859.2,0.73739114]
[1771817890589,0.71310969,1860.3,1859.2,0.73739114]
[1771817890893,0.00425802,1860.4,1859.2,0.73739114]
[1771817891190,0.7132115,1860.3,1859.2,0.73739114]
[1771817891490,0.00425802,1860.4,1859.2,0.73739114]
[1771817891790,0.71308596,1860.3,1859.2,0.73739114]
[1771817891988,0.00425802,1860.4,1859.2,0.73739114]
[1771817892291,0.71308554,1860.3,1859.2,0.73739114]
[1771817892588,0.00425802,1860.4,1859.4,0.74872572]
[1771817894195,0.00425802,1860.4,1859.6,0.75453561]
[1771817894491,0.00425802,1860.4,1859.6,0.75918321]
[1771817902398,0.00425802,1860.4,1859.8,0.75563769]
[1771817903794,0.71260243,1860.3,1859.6,0.76116722]
[1771817903993,0.00425802,1860.4,1859.6,0.76116722]
[1771817904195,0.71266084,1860.3,1859.6,0.76116722]
[1771817904494,0.00425802,1860.4,1859.6,0.76116722]
[1771817904695,0.7127755,1860.3,1859.6,0.76116722]
[1771817904998,0.00425802,1860.4,1859.6,0.76116722]
[1771817916998,4.47941957,1861.1,1860.0,0.75033768]
[1771817917194,0.26868,1861.5,1860.2,0.75033768]
[1771817917398,8.63096831,1861.4,1860.2,0.75033768]
[1771817917601,8.63096831,1861.3,1860.2,0.75033768]
[1771817917799,8.63096831,1861.2,1860.2,0.75033768]
[1771817918002,0.71524655,1861.1,1860.2,0.75033768]
[1771817918199,0.71524655,1861.0,1860.2,0.75033768]
[1771817918401,0.00601114,1861.2,1860.2,0.75033768]
[1771817918600,0.69766191,1861.1,1860.2,0.75033768]
[1771817918803,0.69766191,1861.0,1860.2,0.75033768]
[1771817919004,0.00601114,1861.2,1860.2,0.75033768]
[1771817919303,0.69766202,1861.1,1860.2,0.75033768]
[1771817919499,0.00601114,1861.2,1860.2,0.75033768]
[1771817919500,0.69766202,1861.0,1860.2,0.75033768]
[1771817919700,0.69766202,1860.9,1860.2,0.75033768]
[1771817919896,0.00601114,1861.2,1860.2,0.75033768]
[1771817920098,8.57084805,1861.1,1860.2,0.75033768]
[1771817920295,0.69751981,1861.0,1860.2,0.75033768]
[1771817920499,0.69751981,1860.9,1860.2,0.75033768]
[1771817920706,0.00601114,1861.2,1860.2,0.75033768]
[1771817921003,8.57030436,1861.1,1860.2,0.75033768]
[1771817921204,0.69749602,1861.0,1860.2,0.75033768]
[1771817921401,0.69749602,1860.9,1860.2,0.75033768]
[1771817921593,0.00601114,1861.2,1860.2,0.75033768]
[1771817921800,8.54951116,1861.1,1860.2,0.75033768]
[1771817922104,0.69745018,1861.0,1860.2,0.75033768]
[1771817922305,0.69745018,1860.9,1860.2,0.75033768]
[1771817922506,0.00601114,1861.2,1860.2,0.75033768]
[1771817922707,8.54949701,1861.1,1860.2,0.75033768]
[1771817923004,0.69741291,1861.0,1860.2,0.75033768]
[1771817923202,0.69741291,1860.9,1860.2,0.75033768]
[1771817923402,0.00601114,1861.2,1860.2,0.75033768]
[1771817923600,8.54896384,1861.1,1860.2,0.75033768]
[1771817923802,0.69736286,1861.0,1860.2,0.75033768]
[1771817924001,0.69736286,1860.9,1860.2,0.75033768]
[1771817924197,0.00601114,1861.2,1860.2,0.75033768]
[1771817924398,8.54852832,1861.1,1860.2,0.75033768]
[1771817924605,0.69736299,1861.0,1860.2,0.75033768]
[1771817924800,0.69736299,1860.9,1860.2,0.75033768]
[1771817924997,0.00601114,1861.2,1860.2,0.75033768]
[1771817925203,8.54870381,1861.1,1860.2,0.75033768]
[1771817925401,0.69734144,1861.0,1860.2,0.75033768]
[1771817925598,0.69734144,1860.9,1860.2,0.75033768]
[1771817925802,0.00601114,1861.2,1860.2,0.75033768]
[1771817926007,8.54830856,1861.1,1860.2,0.75033768]
[1771817926207,0.69729905,1861.0,1860.2,0.75033768]
[1771817926407,0.69729905,1860.9,1860.2,0.75033768]
[1771817926603,0.00601114,1861.2,1860.2,0.75033768]
[1771817926907,8.54753118,1861.1,1860.2,0.75033768]
[1771817927109,0.69723197,1861.0,1860.2,0.75033768]
[1771817927310,0.69723197,1860.9,1860.2,0.75033768]
[1771817927509,0.69723197,1860.8,1860.2,0.75033768]
[1771817927813,0.00601114,1861.2,1860.2,0.75033768]
[1771817928007,8.54720119,1861.1,1860.2,0.75033768]
[1771817928207,0.69720638,1861.0,1860.2,0.75033768]
[1771817928407,0.69720638,1860.9,1860.2,0.75033768]
[1771817928706,0.69720638,1860.8,1860.2,0.75033768]
[1771817928910,0.00601114,1861.2,1860.2,0.75033768]
[1771817929105,8.54699902,1861.1,1860.2,0.75033768]
[1771817929301,0.69718892,1861.0,1860.2,0.75033768]
[1771817929505,0.69718892,1860.9,1860.2,0.75033768]
[1771817929702,0.69718892,1860.8,1860.2,0.75033768]
[1771817929907,0.00601114,1861.2,1860.2,0.75033768]
[1771817930102,8.54808588,1861.1,1860.2,0.75033768]
[1771817930309,0.69727928,1861.0,1860.2,0.75033768]
[1771817930512,0.69727928,1860.9,1860.2,0.75033768]
[1771817930713,0.69727928,1860.8,1860.2,0.75033768]
[1771817931013,0.00601114,1861.2,1860.2,0.75033768]
[1771817931214,8.54977792,1861.1,1860.2,0.75033768]
[1771817931417,0.69741423,1861.0,1860.2,0.75033768]
[1771817931612,0.69741423,1860.9,1860.2,0.75033768]
[1771817931809,0.69741423,1860.8,1860.2,0.75033768]
[1771817932016,0.00601114,1861.2,1860.2,0.75033768]
[1771817932205,8.54992123,1861.1,1860.2,0.75033768]
[1771817932410,0.69744395,1861.0,1860.2,0.75033768]
[1771817932614,0.69744395,1860.9,1860.2,0.75033768]
[1771817932816,0.69744395,1860.8,1860.2,0.75033768]
[1771817933017,0.00601114,1861.2,1860.2,0.75033768]
[1771817933314,8.54987761,1861.1,1860.2,0.76033768]
[1771817933515,0.69745033,1861.0,1860.2,0.76033768]
[1771817933707,0.69745033,1860.9,1860.2,0.76033768]
[1771817933912,0.00601114,1861.2,1860.2,0.76033768]
[1771817934118,8.55012992,1861.1,1860.2,0.76033768]
[1771817934316,0.69748611,1861.0,1860.2,0.76033768]
[1771817934515,0.69748611,1860.9,1860.2,0.76033768]
[1771817934716,0.69748611,1860.8,1860.2,0.76033768]
[1771817935015,0.00601114,1861.2,1860.2,0.76033768]
[1771817935314,8.55223406,1861.1,1860.2,0.76033768]
[1771817935517,0.69766274,1861.0,1860.2,0.76033768]
[1771817935717,0.69766274,1860.9,1860.2,0.76033768]
[1771817936017,0.69766274,1860.8,1860.2,0.76033768]
[1771817936217,0.00601114,1861.2,1860.2,0.76033768]
[1771817936418,8.55348255,1861.1,1860.2,0.76033768]
[1771817936618,0.69763659,1861.0,1860.2,0.76033768]
[1771817936814,0.69763659,1860.9,1860.2,0.76033768]
[1771817937015,0.69763659,1860.8,1860.2,0.76033768]
[1771817937315,0.00601114,1861.2,1860.2,0.76033768]
[1771817937514,8.55441605,1861.1,1860.2,0.76033768]
[1771817937715,8.55441605,1861.0,1860.2,0.76033768]
[1771817937915,0.69780639,1860.9,1860.2,0.76033768]
[1771817938114,0.69780639,1860.8,1860.2,0.76033768]
[1771817938316,0.00601114,1861.2,1860.2,0.76033768]
[1771817938517,8.55600281,1861.1,1860.2,0.76033768]
[1771817938716,8.55600281,1861.0,1860.2,0.76033768]
[1771817939016,0.6979394,1860.9,1860.2,0.76033768]
[1771817939314,0.6979394,1860.8,1860.2,0.76033768]
[1771817939511,0.00601114,1861.2,1860.2,0.76033768]
[1771817939718,8.55709449,1861.1,1860.2,0.76033768]
[1771817939920,8.55709449,1861.0,1860.2,0.76033768]
[1771817940119,0.69802917,1860.9,1860.2,0.76033768]
[1771817940320,0.69802917,1860.8,1860.2,0.76033768]
[1771817940523,0.27474114,1861.2,1860.2,0.76033768]
[1771817940722,8.55800438,1861.1,1860.2,0.76033768]
[1771817941021,8.55800438,1861.0,1860.2,0.76033768]
[1771817941221,0.69808733,1860.9,1860.2,0.76033768]
[1771817941519,0.69808733,1860.8,1860.2,0.76033768]
[1771817941720,0.69808733,1860.7,1860.2,0.76033768]
[1771817941924,0.27474114,1861.2,1860.2,0.76033768]
[1771817942113,8.55948146,1861.1,1860.2,0.76033768]
[1771817942320,0.00601114,1861.2,1860.2,0.76033768]
[1771817942621,0.38959073,1861.1,1860.2,0.76033768]
[1771817945523,0.38449389,1861.2,1860.2,0.76033768]
[1771817952830,0.37373355,1861.0,1860.2,0.76033768]
[1771817954334,0.37403467,1860.8,1860.2,0.76033768]
[1771817954532,0.69366442,1860.7,1860.2,0.76033768]
[1771817954734,0.37403467,1860.8,1860.2,0.76033768]
[1771817954936,0.69381854,1860.7,1860.2,0.76033768]
[1771817955234,0.37403467,1860.8,1860.2,0.76033768]
[1771817955434,0.69413063,1860.7,1860.2,0.76033768]
[1771817955735,0.37403467,1860.8,1860.2,0.76033768]
[1771817955936,0.36548273,1861.0,1860.2,0.76033768]
[1771817956137,0.69415379,1860.9,1860.2,0.76033768]
[1771817956334,0.69415379,1860.8,1860.2,0.76033768]
[1771817956530,0.36548273,1861.0,1860.2,0.76033768]
[1771817956732,0.36542465,1860.8,1860.2,0.76033768]
[1771817957032,0.69414908,1860.7,1860.2,0.76033768]
[1771817957231,0.36542465,1860.8,1860.2,0.76033768]
[1771817957534,0.69415543,1860.7,1860.2,0.76033768]
[1771817957732,0.36542465,1860.8,1860.2,0.76033768]
[1771817957934,0.69442652,1860.7,1860.2,0.76033768]
[1771817958133,0.36542465,1860.8,1860.2,0.76033768]
[1771817958432,1.0588918,1860.7,1860.2,0.76033768]
[1771817958732,0.36443678,1860.7,1860.2,0.76033768]
[1771817961434,0.35974021,1860.8,1860.2,0.76033768]
[1771817961738,0.69448988,1860.7,1860.2,0.76033768]
[1771817961939,0.35974021,1860.8,1860.2,0.76033768]
[1771817962138,0.69449016,1860.7,1860.2,0.76033768]
[1771817962335,0.35974021,1860.8,1860.2,0.76033768]
[1771817962539,0.6944837,1860.7,1860.2,0.76033768]
[1771817962739,0.35974021,1860.8,1860.2,0.76033768]
[1771817962939,0.69448398,1860.7,1860.2,0.76033768]
[1771817963140,0.35974021,1860.8,1860.2,0.76033768]
[1771817963343,0.69448947,1860.7,1860.2,0.76033768]
[1771817963544,0.35974021,1860.8,1860.2,0.76033768]
[1771817963745,0.69447546,1860.7,1860.2,0.76033768]
[1771817963946,0.35974021,1860.8,1860.2,0.76033768]
[1771817964246,0.69447551,1860.7,1860.2,0.76033768]
[1771817964439,0.35974021,1860.8,1860.2,0.76033768]
[1771817964639,0.69446577,1860.7,1860.2,0.76033768]
[1771817964839,0.36365157,1861.1,1860.2,0.76033768]
[1771817965041,0.36365157,1860.9,1860.2,0.76033768]
[1771817965238,0.69446648,1860.8,1860.2,0.76033768]
[1771817965541,0.69446648,1860.7,1860.2,0.76033768]
[1771817965737,0.36365157,1860.9,1860.2,0.76033768]
[1771817965940,0.69453415,1860.8,1860.2,0.76033768]
[1771817966142,0.69453415,1860.7,1860.2,0.76033768]
[1771817966348,0.36365157,1860.9,1860.2,0.76033768]
[1771817966649,0.69467726,1860.8,1860.2,0.76033768]
[1771817966849,0.69467726,1860.7,1860.2,0.76033768]
[1771817967053,0.36365157,1860.9,1860.2,0.76033768]
[1771817967247,0.69461544,1860.8,1860.2,0.76033768]
[1771817967549,0.69461544,1860.7,1860.2,0.76033768]
[1771817967749,0.36365157,1860.9,1860.2,0.76033768]
[1771817967948,1.0593245,1860.8,1860.2,0.76033768]
[1771817968150,0.69467569,1860.7,1860.2,0.76033768]
[1771817968342,0.36464881,1860.8,1860.2,0.76033768]
[1771817968542,0.69466979,1860.7,1860.2,0.76033768]
[1771817968741,0.36464881,1860.8,1860.2,0.76033768]
[1771817968941,0.69467516,1860.7,1860.2,0.76033768]
[1771817969149,0.36464881,1860.8,1860.2,0.76033768]
[1771817969344,0.69468372,1860.7,1860.2,0.76033768]
[1771817969549,0.36464881,1860.8,1860.2,0.76033768]
[1771817969749,0.69466969,1860.7,1860.2,0.76033768]
[1771817969949,0.36464881,1860.8,1860.2,0.76033768]
[1771817970150,0.69467953,1860.7,1860.2,0.76033768]
[1771817970345,0.36566096,1861.1,1860.2,0.76033768]
[1771817970649,8.94848469,1861.0,1860.2,0.76033768]
[1771817970848,8.94848469,1860.9,1860.2,0.76033768]
[1771817971049,0.69480347,1860.8,1860.2,0.76033768]
[1771817971241,0.36566096,1860.9,1860.2,0.76033768]
[1771817971242,0.69480347,1860.7,1860.2,0.76033768]
[1771817971447,0.36566096,1860.9,1860.2,0.76033768]
[1771817971650,0.69500887,1860.8,1860.2,0.76033768]
[1771817971849,0.69500887,1860.7,1860.2,0.76033768]
[1771817972050,0.36566096,1860.9,1860.2,0.76033768]
[1771817972255,0.69500859,1860.8,1860.2,0.76033768]
[1771817972553,0.69500859,1860.7,1860.2,0.76033768]
[1771817972755,0.36566096,1860.9,1860.2,0.76033768]
[1771817972954,0.6950069,1860.8,1860.2,0.76033768]
[1771817973154,0.6950069,1860.7,1860.2,0.76033768]
[1771817973454,0.36566096,1860.9,1860.2,0.76033768]
[1771817973655,0.6950265,1860.8,1860.2,0.76033768]
[1771817973953,0.6950265,1860.7,1860.2,0.76033768]
[1771817974152,0.36566096,1860.9,1860.2,0.76033768]
[1771817974353,0.69505131,1860.8,1860.2,0.76033768]
[1771817974554,0.69505131,1860.7,1860.2,0.76033768]
[1771817974852,0.36566096,1860.9,1860.2,0.76033768]
[1771817975056,0.3675721,1860.7,1860.2,0.76033768]
[1771817975257,0.3675721,1860.8,1860.2,0.76033768]
[1771817975452,0.69498826,1860.7,1860.2,0.76033768]
[1771817975657,0.3675721,1860.8,1860.2,0.76033768]
[1771817975856,0.69500219,1860.7,1860.2,0.76033768]
[1771817976052,0.3675721,1860.8,1860.2,0.76033768]
[1771817976252,0.69500385,1860.7,1860.2,0.76033768]
[1771817976453,0.3675721,1860.8,1860.2,0.76033768]
[1771817976654,1.06241696,1860.7,1860.2,0.76033768]
[1771817976954,0.36732096,1860.7,1860.2,0.76033768]
[1771817977354,0.36732096,1861.0,1860.2,0.76033768]
[1771817977557,8.95511009,1860.9,1860.2,0.76033768]
[1771817977857,0.6951915,1860.8,1860.2,0.76033768]
[1771817978056,0.6951915,1860.7,1860.2,0.76033768]
[1771817978259,0.36759668,1861.1,1860.2,0.76033768]
[1771817978460,8.94773592,1861.0,1860.2,0.76033768]
[1771817978654,0.69463098,1860.9,1860.2,0.76033768]
[1771817978958,0.69463098,1860.8,1860.2,0.76033768]
[1771817979156,0.69463098,1860.7,1860.2,0.76033768]
[1771817979357,0.36759668,1860.9,1860.2,0.76033768]
[1771817979557,0.69484929,1860.8,1860.2,0.76033768]
[1771817979856,0.69484929,1860.7,1860.2,0.76033768]
[1771817980056,0.36887644,1861.1,1860.2,0.76033768]
[1771817980252,8.58348394,1861.0,1860.2,0.76033768]
[1771817980454,0.6948869,1860.9,1860.2,0.76033768]
[1771817980755,0.6948869,1860.8,1860.2,0.76033768]
[1771817980956,0.6948869,1860.7,1860.2,0.76033768]
[1771817981158,0.36887644,1861.0,1860.2,0.76033768]
[1771817981455,0.69510739,1860.9,1860.2,0.76033768]
[1771817981656,0.69510739,1860.8,1860.2,0.76033768]
[1771817981956,0.36887644,1861.0,1860.2,0.76033768]
[1771817982156,0.69503488,1860.9,1860.2,0.76033768]
[1771817982357,0.69503488,1860.8,1860.2,0.76033768]
[1771817982561,0.36887644,1861.0,1860.2,0.76033768]
[1771817982759,0.69518366,1860.9,1860.2,0.76033768]
[1771817982961,0.69518366,1860.8,1860.2,0.76033768]
[1771817983258,0.36887644,1861.0,1860.2,0.76033768]
[1771817983459,0.69513126,1860.9,1860.2,0.76033768]
[1771817983657,0.69513126,1860.8,1860.2,0.76033768]
[1771817983857,0.36887644,1861.0,1860.2,0.76033768]
[1771817984055,0.69513084,1860.9,1860.2,0.76033768]
[1771817984255,0.69513084,1860.8,1860.2,0.76033768]
[1771817984457,0.36887644,1861.0,1860.2,0.76033768]
[1771817984758,0.69491655,1860.9,1860.2,0.76033768]
[1771817984957,0.69491655,1860.8,1860.2,0.76033768]
[1771817985259,0.36887644,1861.0,1860.2,0.76033768]
[1771817985459,0.69488182,1860.9,1860.2,0.76033768]
[1771817985658,0.69488182,1860.8,1860.2,0.76033768]
[1771817985854,0.36887644,1861.0,1860.2,0.76033768]
[1771817986059,0.6948819,1860.9,1860.2,0.76033768]
[1771817986258,0.6948819,1860.8,1860.2,0.76033768]
[1771817986459,0.36887644,1861.0,1860.2,0.76033768]
[1771817986661,0.69484832,1860.9,1860.2,0.76033768]
[1771817986858,0.69484832,1860.8,1860.2,0.76033768]
[1771817987061,0.36887644,1861.0,1860.2,0.76033768]
[1771817987256,0.69484837,1860.9,1860.2,0.76033768]
[1771817987561,0.69484837,1860.8,1860.2,0.76033768]
[1771817987763,0.36887644,1861.0,1860.2,0.76033768]
[1771817987962,0.69481861,1860.9,1860.2,0.76033768]
[1771817988166,0.69481861,1860.8,1860.2,0.76033768]
[1771817988364,0.36887644,1861.0,1860.2,0.76033768]
[1771817988564,0.69480371,1860.9,1860.2,0.76033768]
[1771817988865,0.69480371,1860.8,1860.2,0.76033768]
[1771817989064,0.36887644,1861.0,1860.2,0.76033768]
[1771817989260,0.69480432,1860.9,1860.2,0.76033768]
[1771817989460,0.69480432,1860.8,1860.2,0.76033768]
[1771817989768,0.36887644,1861.0,1860.2,0.76033768]
[1771817989966,0.694763,1860.9,1860.2,0.76033768]
[1771817990165,0.694763,1860.8,1860.2,0.76033768]
[1771817990367,0.36887644,1861.0,1860.2,0.76033768]
[1771817990665,0.69470856,1860.9,1860.2,0.76033768]
[1771817990859,0.69470856,1860.8,1860.2,0.76033768]
[1771817991062,0.36887644,1861.0,1860.2,0.76033768]
[1771817991262,0.69462956,1860.9,1860.2,0.76033768]
[1771817991463,0.36644187,1861.1,1860.2,0.76033768]
[1771817991662,0.69468959,1861.0,1860.2,0.76033768]
[1771817991864,0.36644187,1861.1,1860.2,0.76033768]
[1771817992057,1.06185068,1861.0,1860.2,0.76033768]
[1771817992266,0.36701117,1861.0,1860.2,0.76033768]
[1771817992467,0.37302231,1861.2,1860.2,0.76033768]
[1771817992667,1.06172711,1861.1,1860.2,0.76033768]
[1771817992968,1.06172711,1861.0,1860.2,0.76033768]
[1771817993167,0.36701117,1861.0,1860.2,0.76033768]
[1771817994765,0.36694401,1860.8,1860.2,0.76033768]
[1771817996471,0.36694401,1860.8,1860.2,0.01]
[1771817996671,0.36694401,1860.8,1860.2,0.56993397]
[1771817997170,0.36689698,1861.0,1860.2,0.56993397]
[1771817997471,0.26875,1861.1,1860.2,0.56993397]
[1771817997472,1.06159197,1860.9,1860.2,0.56993397]
[1771817997666,0.69469499,1860.8,1860.2,0.56993397]
[1771817997866,0.36689698,1860.9,1860.2,0.56993397]
[1771817998071,0.6946415,1860.8,1860.2,0.56993397]
[1771817998370,0.36689698,1860.9,1860.2,0.56993397]
[1771817998571,0.69466609,1860.8,1860.2,0.56993397]
[1771817998771,0.36689698,1860.9,1860.2,0.56993397]
[1771817999070,0.69464709,1860.8,1860.2,0.56993397]
[1771817999275,0.36689698,1860.9,1860.2,0.56993397]
[1771817999569,0.69468606,1860.8,1860.2,0.56993397]
[1771817999769,0.36689698,1860.9,1860.2,0.56993397]
[1771817999966,0.69468606,1860.8,1860.2,0.56993397]
[1771818000168,0.36689698,1860.9,1860.2,0.56993397]
[1771818000367,1.05253037,1860.8,1860.2,0.56993397]
[1771818000676,0.35783766,1860.8,1860.2,0.56993397]
[1771818006880,0.26875,1861.1,1860.2,0.56993397]
[1771818006881,0.35347452,1860.6,1860.2,0.56993397]
[1771818007375,0.35347452,1861.0,1860.2,0.56993397]
[1771818007578,0.35347452,1860.8,1860.2,0.56993397]
[1771818007872,1.04755426,1860.7,1860.2,0.56993397]
[1771818008077,0.35320766,1860.7,1860.2,0.56993397]
[1771818008678,0.26875,1861.1,1860.2,0.56993397]
[1771818008871,0.35320766,1860.9,1860.2,0.56993397]
[1771818009076,0.69438534,1860.8,1860.2,0.56993397]
[1771818009277,0.35320766,1860.9,1860.2,0.56993397]
[1771818009478,0.69446316,1860.8,1860.2,0.56993397]
[1771818009679,0.35320766,1860.9,1860.2,0.56993397]
[1771818009982,1.04181186,1860.8,1860.2,0.56993397]
[1771818010281,0.34725941,1860.8,1860.2,0.56993397]
[1771818010884,0.34725941,1860.6,1860.2,0.56993397]
[1771818011085,0.34725941,1860.7,1860.2,0.56993397]
[1771818011680,0.35304763,1861.2,1860.4,0.55993397]
[1771818011884,1.04152382,1861.1,1860.4,0.55993397]
[1771818012082,0.34703649,1861.1,1860.4,0.55993397]
[1771818015786,0.00601114,1861.2,1860.4,0.55993397]
[1771818016182,0.00601114,1861.2,1860.4,0.56993397]
[1771818019389,0.3371808,1861.5,1860.4,0.56993397]
[1771818020290,0.3440675,1861.5,1860.4,0.56993397]
[1771818022690,0.0068867,1861.5,1860.6,0.58899388]
[1771818024097,0.34753379,1861.5,1860.6,0.58899388]
[1771818025893,0.0068867,1861.5,1860.8,0.58899388]
[1771818027002,0.33762575,1861.4,1860.8,0.58899388]
[1771818027296,0.34451245,1861.5,1860.8,0.58899388]
[1771818027599,0.0068867,1861.5,1860.8,0.58899388]
[1771818032700,0.32188546,1861.9,1860.8,0.58899388]
[1771818033197,0.32877216,1862.5,1861.0,0.58899388]
[1771818033502,0.32877216,1862.3,1861.0,0.58899388]
[1771818033702,1.02158313,1862.2,1861.0,0.5951044]
[1771818033904,0.32929413,1862.2,1861.0,0.5951044]
[1771818039907,0.00471672,1862.3,1861.0,0.5951044]
[1771818039908,0.33450904,1862.3,1861.2,0.58899388]
[1771818042107,0.00471672,1862.3,1861.2,0.58899388]
[1771818042310,0.33326431,1862.3,1861.2,0.58899388]
[1771818046102,0.33827599,1862.3,1861.4,0.58899388]
[1771818053614,0.00471672,1862.3,1861.6,0.58996541]
[1771818058714,6.467,1862.6,1861.6,0.59996541]
[1771818059113,6.80382782,1862.6,1861.6,0.59996541]
[1771818059314,0.33682782,1862.5,1861.6,0.59996541]
[1771818059714,0.34216471,1862.5,1861.6,0.59996541]
[1771818061821,0.00533689,1862.5,1861.8,0.58996541]
[1771818062018,6.467,1863.0,1862.0,0.58996541]
[1771818062320,0.69251129,1862.9,1862.0,0.58996541]
[1771818062525,0.34277248,1863.0,1862.0,0.58996541]
[1771818063010,0.00588759,1863.0,1862.2,0.58996541]
[1771818068621,0.39142028,1863.0,1862.2,0.58996541]
[1771818071818,0.00588759,1863.0,1862.2,0.58996541]
[1771818072018,0.39708326,1863.0,1862.2,0.58996541]
[1771818072218,0.00588759,1863.0,1862.2,0.58996541]
[1771818075732,0.00588759,1863.0,1862.4,0.58996541]
[1771818076027,0.00588759,1863.0,1862.4,0.59472255]
[1771818076628,0.38971833,1863.4,1862.4,0.59472255]
[1771818077625,0.39505782,1863.4,1862.4,0.59472255]
[1771818078626,0.39505782,1863.4,1862.6,0.59128129]
[1771818079530,0.41982869,1863.4,1862.6,0.59128129]
[1771818079830,0.00533949,1863.4,1862.6,0.59128129]
[1771818080027,0.42958984,1864.0,1863.2,0.60740679]
[1771818081029,0.43530989,1864.0,1863.2,0.60740679]
[1771818082526,0.00516329,1864.4,1863.4,0.607549]
[1771818083530,0.00696111,1864.4,1863.4,0.607549]
[1771818084025,0.25546642,1864.9,1863.4,0.607549]
[1771818084235,8.51003767,1864.8,1863.4,0.607549]
[1771818084532,0.68956835,1864.7,1863.4,0.607549]
[1771818084734,0.25546642,1864.9,1863.4,0.607549]